bitfinex-derivatives/quotes_BTCF0:USTF0_20251204
["timestamp","ask_amount","ask_price","bid_price","bid_amount"]
[1764848903808,0.1116257,92880.0,92879.0,0.10215]
[1764848904906,0.1116257,92880.0,92879.0,0.005]
[1764848905293,0.109626,92877.0,92876.0,0.3608]
[1764848905907,0.109626,92877.0,92876.0,0.41282]
[1764848906297,0.109626,92877.0,92876.0,0.45795]
[1764848906498,0.110626,92877.0,92876.0,0.46195]
[1764848907510,0.111626,92877.0,92876.0,0.46195]
[1764848907717,0.05444,92877.0,92876.0,0.49171]
[1764848908113,0.001,92877.0,92876.0,0.49171]
[1764848908703,0.001,92877.0,92876.0,0.5024761]
[1764848908908,0.0107658,92879.0,92878.0,0.1079159]
[1764848909109,0.0632055,92882.0,92881.0,0.0107653]
[1764848909416,0.08578111,92882.0,92881.0,0.1079153]
[1764848910317,0.08778111,92882.0,92881.0,0.1139153]
[1764848911710,0.13420111,92882.0,92881.0,0.1139153]
[1764848912314,0.13220111,92882.0,92881.0,0.1149153]
[1764848912522,0.13420111,92882.0,92881.0,0.1149153]
[1764848914621,0.12343561,92882.0,92881.0,0.1149153]
[1764848916209,0.07701561,92882.0,92881.0,0.1149153]
[1764848916416,0.002,92882.0,92881.0,0.1149153]
[1764848919420,0.00016151,92887.0,92886.0,0.124355]
[1764848919622,0.6004426,92906.0,92905.0,0.0886]
[1764848919815,0.62302117,92906.0,92905.0,0.0886]
[1764848920615,0.62302117,92906.0,92905.0,0.04622]
[1764848921420,0.62402117,92906.0,92905.0,0.04622]
[1764848921612,0.62502117,92906.0,92905.0,0.04722]
[1764848921816,0.62502117,92906.0,92905.0,0.001]
[1764848922015,0.62502117,92906.0,92899.0,0.0225435]
[1764848922016,0.0954333,92900.0,92899.0,0.09162]
[1764848922323,0.11801187,92900.0,92899.0,0.09162]
[1764848924119,0.12001187,92900.0,92899.0,0.09662]
[1764848925325,0.11992362,92900.0,92899.0,0.09662]
[1764848927019,0.02449032,92900.0,92899.0,0.09662]
[1764848927224,0.002,92900.0,92899.0,0.09662]
[1764848927518,0.08667,92900.0,92899.0,0.09662]
[1764848931638,0.08667,92900.0,92899.0,0.1073835]
[1764848931639,0.002,92900.0,92899.0,0.1073835]
[1764848932930,0.04522,92900.0,92899.0,0.1073835]
[1764848933131,0.08667,92900.0,92899.0,0.1073835]
[1764848934641,0.04522,92900.0,92899.0,0.1073835]
[1764848934940,0.08667,92900.0,92899.0,0.1073835]
[1764848935739,0.002,92900.0,92899.0,0.1073835]
[1764848936533,0.04322,92909.0,92908.0,0.0906024]
[1764848937333,0.4347,92910.0,92909.0,0.07984]
[1764848938936,0.51937,92910.0,92909.0,0.07984]
[1764848939137,0.54477,92910.0,92909.0,0.07984]
[1764848939437,0.0954323,92909.0,92908.0,0.08184]
[1764848940238,0.0954323,92909.0,92908.0,0.07984]
[1764848940440,0.0964323,92909.0,92908.0,0.07984]
[1764848940742,0.095433,92903.0,92902.0,0.44064]
[1764848941838,0.096433,92903.0,92902.0,0.44464]
[1764848942435,0.096433,92903.0,92902.0,0.08384]
[1764848942943,0.097433,92903.0,92902.0,0.08384]
[1764848943643,0.097433,92903.0,92902.0,0.004]
[1764848943942,0.0919937,92897.0,92896.0,0.00016151]
[1764848944145,0.47528225,92897.0,92896.0,0.00016151]
[1764848946448,0.47628225,92897.0,92896.0,0.00516151]
[1764848946745,0.47628225,92897.0,92896.0,0.04831151]
[1764848947240,0.47728225,92897.0,92896.0,0.08775151]
[1764848947433,0.10571855,92897.0,92896.0,0.08775151]
[1764848947846,0.10471855,92897.0,92896.0,0.08275151]
[1764848948036,0.10571855,92897.0,92896.0,0.08575151]
[1764848948745,0.10471855,92897.0,92896.0,0.08575151]
[1764848949336,0.10471855,92897.0,92896.0,0.08675151]
[1764848949531,0.08223,92897.0,92896.0,0.08675151]
[1764848950247,0.001,92897.0,92896.0,0.08675151]
[1764848952450,0.04317,92897.0,92896.0,0.08675151]
[1764848953542,0.08223,92897.0,92896.0,0.08675151]
[1764848953748,0.08223,92897.0,92896.0,0.04731151]
[1764848954054,0.08223,92897.0,92896.0,0.08675151]
[1764848958946,0.0107628,92905.0,92896.0,0.08675151]
[1764848958947,0.0577131,92921.0,92914.0,0.08259]
[1764848959147,0.08139151,92915.0,92914.0,0.08259]
[1764848959646,0.08123,92905.0,92904.0,0.16207387]
[1764848960145,0.04217,92905.0,92904.0,0.10398]
[1764848960545,0.08123,92914.0,92913.0,0.0933518]
[1764848961050,0.08123,92914.0,92913.0,0.08259]
[1764848963144,0.08223,92914.0,92913.0,0.08659]
[1764848964748,0.08223,92914.0,92913.0,0.08759]
[1764848965253,0.08123,92914.0,92913.0,0.08259]
[1764848965450,0.04317,92914.0,92913.0,0.08559]
[1764848966351,0.08123,92914.0,92913.0,0.08259]
[1764848966652,0.08223,92914.0,92913.0,0.08659]
[1764848967752,0.08223,92914.0,92913.0,0.08759]
[1764848969953,0.1046169,92914.0,92913.0,0.08759]
[1764848970252,0.08223,92914.0,92913.0,0.08759]
[1764848970855,0.10461609,92914.0,92913.0,0.08759]
[1764848980061,0.08223,92914.0,92913.0,0.08759]
[1764848984858,0.08223,92914.0,92913.0,0.005]
[1764848985366,0.08223,92914.0,92913.0,0.10383338]
[1764848986355,0.08223,92914.0,92913.0,0.07482]
[1764848986563,0.08223,92914.0,92913.0,0.0855818]
[1764848987374,0.08223,92914.0,92913.0,0.07482]
[1764848987859,0.08223,92914.0,92913.0,0.0855818]
[1764848988262,0.08223,92914.0,92913.0,0.07482]
[1764848989057,0.08223,92914.0,92913.0,0.005]
[1764848989458,0.08223,92914.0,92913.0,0.03844]
[1764848989663,0.08223,92914.0,92913.0,0.07482]
[1764848989863,0.08223,92914.0,92913.0,0.03844]
[1764848990066,0.08223,92914.0,92913.0,0.005]
[1764848991965,0.010763,92903.0,92902.0,0.03867531]
[1764848992165,0.0107632,92901.0,92900.0,0.39947531]
[1764848992371,0.0786632,92901.0,92900.0,0.39947531]
[1764848992965,0.0679,92900.0,92899.0,0.03867531]
[1764848993163,0.0786635,92899.0,92897.0,0.03867531]
[1764848993472,0.08827,92898.0,92897.0,0.07211531]
[1764848993859,0.08827,92898.0,92897.0,0.03867531]
[1764848994274,0.0786637,92897.0,92896.0,0.00016151]
[1764848994873,0.0786637,92897.0,92896.0,0.03360151]
[1764848996073,0.0786637,92897.0,92896.0,0.06998151]
[1764848996776,0.4404637,92897.0,92896.0,0.07098151]
[1764849000187,0.4404637,92897.0,92896.0,0.00116151]
[1764849000590,0.4404637,92897.0,92896.0,0.07098151]
[1764849000798,0.9403437,92897.0,92896.0,0.07098151]
[1764849003695,0.4070137,92897.0,92896.0,0.07098151]
[1764849003998,0.4390337,92897.0,92896.0,0.07098151]
[1764849005784,0.06747,92897.0,92896.0,0.07098151]
[1764849006686,0.001,92897.0,92896.0,0.07098151]
[1764849006887,0.001,92897.0,92896.0,0.43178151]
[1764849008202,0.06705,92897.0,92896.0,0.43178151]
[1764849008893,0.001,92897.0,92896.0,0.43178151]
[1764849011798,0.07697321,92915.0,92914.0,0.06497]
[1764849011998,0.07697321,92915.0,92914.0,0.0757317]
[1764849012698,0.04495321,92915.0,92914.0,0.0757317]
[1764849013103,0.07697321,92915.0,92914.0,0.06497]
[1764849013298,0.08297321,92915.0,92914.0,0.06697]
[1764849014104,0.08397321,92915.0,92914.0,0.06697]
[1764849014699,0.08297321,92915.0,92914.0,0.06697]
[1764849015004,0.06605,92912.0,92911.0,0.07218979]
[1764849015197,0.06605,92912.0,92911.0,0.06497]
[1764849016197,0.07005,92912.0,92911.0,0.06597]
[1764849017203,0.07105,92912.0,92911.0,0.06597]
[1764849018412,0.07105,92912.0,92911.0,0.10461236]
[1764849018601,0.005,92912.0,92911.0,0.10461236]
[1764849019406,0.005,92912.0,92911.0,0.06597]
[1764849019600,0.005,92912.0,92911.0,0.10461236]
[1764849019811,0.005,92912.0,92911.0,0.06597]
[1764849022115,0.07105,92912.0,92911.0,0.06597]
[1764849022418,0.07105,92912.0,92911.0,0.001]
[1764849023421,0.08296,92897.0,92896.0,0.36096151]
[1764849023920,0.0937237,92897.0,92896.0,0.42593151]
[1764849025719,0.0947237,92897.0,92896.0,0.42793151]
[1764849027216,0.0768137,92897.0,92896.0,0.42693151]
[1764849027414,0.0788137,92897.0,92896.0,0.42693151]
[1764849027914,0.002,92897.0,92896.0,0.42693151]
[1764849029516,0.002,92897.0,92896.0,0.46557387]
[1764849029922,0.002,92897.0,92896.0,0.42693151]
[1764849030323,0.03603,92897.0,92896.0,0.42693151]
[1764849030514,0.06805,92897.0,92896.0,0.42693151]
[1764849031723,0.002,92897.0,92896.0,0.42693151]
[1764849034217,0.002,92897.0,92896.0,0.48492119]
[1764849034821,0.002,92897.0,92896.0,0.42693151]
[1764849037918,0.002,92897.0,92896.0,0.43769531]
[1764849038516,0.0107631,92903.0,92902.0,0.0757631]
[1764849039726,0.0117631,92903.0,92902.0,0.0757631]
[1764849039925,0.0117631,92903.0,92902.0,0.0767631]
[1764849040120,0.0147631,92903.0,92902.0,0.0767631]
[1764849040624,0.003,92903.0,92902.0,0.13478071]
[1764849041129,0.0107626,92907.0,92904.0,0.01767]
[1764849041424,0.0107626,92907.0,92906.0,0.05616]
[1764849042529,0.0107626,92907.0,92906.0,0.0669221]
[1764849042830,0.0415326,92907.0,92906.0,0.0679221]
[1764849043331,0.0425326,92907.0,92906.0,0.0679221]
[1764849043528,0.003,92907.0,92906.0,0.0679221]
[1764849043921,0.002,92907.0,92906.0,0.0679221]
[1764849044122,0.003,92907.0,92906.0,0.0679221]
[1764849044323,0.01092321,92915.0,92914.0,0.0669217]
[1764849045229,0.06884321,92915.0,92914.0,0.0669217]
[1764849046235,0.07284321,92915.0,92914.0,0.0679217]
[1764849049143,0.06208151,92915.0,92914.0,0.0679217]
[1764849049321,0.00416151,92915.0,92914.0,0.0679217]
[1764849049520,0.00416151,92915.0,92914.0,0.4287217]
[1764849052039,0.01492311,92915.0,92914.0,0.4287217]
[1764849052532,0.00416151,92915.0,92914.0,0.4287217]
[1764849056537,0.00416151,92915.0,92914.0,0.48673931]
[1764849057138,0.05818903,92926.0,92925.0,0.0669204]
[1764849057334,0.0686809,92921.0,92920.0,0.10558155]
[1764849058736,0.0696809,92921.0,92920.0,0.10858155]
[1764849059433,0.0696809,92921.0,92920.0,0.05916]
[1764849062533,0.0696809,92921.0,92920.0,0.07527]
[1764849062938,0.0696809,92921.0,92920.0,0.05916]
[1764849064442,0.0696809,92921.0,92920.0,0.069921]
[1764849064836,0.0696809,92921.0,92920.0,0.086741]
[1764849067838,0.0696809,92921.0,92920.0,0.069921]
[1764849068639,0.0696809,92921.0,92920.0,0.086741]
[1764849069240,0.0405309,92921.0,92920.0,0.086741]
[1764849069442,0.0687009,92921.0,92920.0,0.086741]
[1764849069939,0.001,92921.0,92920.0,0.086741]
[1764849070144,0.001,92921.0,92920.0,0.14472855]
[1764849070332,0.001,92921.0,92920.0,0.086741]
[1764849072034,0.00026903,92926.0,92925.0,0.0864204]
[1764849072239,0.00016142,92930.0,92929.0,0.0696]
[1764849072846,0.02946142,92930.0,92929.0,0.4304]
[1764849073743,0.05763142,92930.0,92929.0,0.4304]
[1764849074339,0.05863142,92930.0,92929.0,0.4324]
[1764849074650,0.05963142,92930.0,92929.0,0.4324]
[1764849074850,0.00216142,92930.0,92929.0,0.4324]
[1764849081149,0.5679479,92947.0,92946.0,0.05884]
[1764849082454,0.0682279,92947.0,92946.0,0.05884]
[1764849082752,0.0293,92947.0,92946.0,0.05884]
[1764849082946,0.05747,92947.0,92946.0,0.05884]
[1764849083142,0.05747,92947.0,92946.0,0.07032954]
[1764849083143,0.05947,92947.0,92946.0,0.07032954]
[1764849083459,0.06247,92947.0,92946.0,0.07132954]
[1764849084046,0.003,92947.0,92946.0,0.07132954]
[1764849085456,0.0323,92947.0,92946.0,0.10996514]
[1764849086155,0.0323,92947.0,92946.0,0.07132954]
[1764849086359,0.0313,92947.0,92946.0,0.07132954]
[1764849086663,0.002,92947.0,92946.0,0.10996514]
[1764849087153,0.002,92947.0,92946.0,0.07132954]
[1764849087752,0.0682276,92952.0,92951.0,0.0695971]
[1764849088952,0.0692276,92952.0,92951.0,0.0725971]
[1764849090361,0.0692276,92952.0,92951.0,0.003]
[1764849090856,0.0682282,92944.0,92937.0,0.00016142]
[1764849091060,0.0682289,92938.0,92937.0,0.00016142]
[1764849091956,0.0682289,92938.0,92937.0,0.01855522]
[1764849092464,0.0682289,92938.0,92937.0,0.01955522]
[1764849093265,0.0682289,92938.0,92937.0,0.05035522]
[1764849093464,0.0692289,92938.0,92937.0,0.08039522]
[1764849093964,0.0682289,92938.0,92937.0,0.07139522]
[1764849094174,0.0692289,92938.0,92937.0,0.07539522]
[1764849099962,0.0695989,92938.0,92937.0,0.07539522]
[1764849102368,0.0695989,92938.0,92937.0,0.08615432]
[1764849102666,0.0695989,92938.0,92937.0,0.07539522]
[1764849103468,0.0695989,92938.0,92937.0,0.08615432]
[1764849105468,0.0695989,92938.0,92937.0,0.07539522]
[1764849107068,0.0400989,92938.0,92937.0,0.07539522]
[1764849107271,0.0681189,92938.0,92937.0,0.07539522]
[1764849108964,0.001,92938.0,92937.0,0.11403082]
[1764849109173,0.001,92938.0,92937.0,0.07539522]
[1764849109673,0.03067,92938.0,92937.0,0.07539522]
[1764849109872,0.001,92938.0,92937.0,0.07539522]
[1764849110167,0.03067,92938.0,92937.0,0.07539522]
[1764849110373,0.05869,92938.0,92937.0,0.07539522]
[1764849115174,0.03067,92938.0,92937.0,0.07539522]
[1764849115475,0.001,92938.0,92937.0,0.07539522]
[1764849115867,0.05869,92938.0,92937.0,0.07539522]
[1764849116068,0.001,92938.0,92937.0,0.07539522]
[1764849117166,0.03067,92938.0,92937.0,0.07539522]
[1764849117574,0.05869,92938.0,92937.0,0.07539522]
[1764849118976,0.001,92938.0,92937.0,0.07539522]
[1764849119169,0.001,92938.0,92937.0,0.13341797]
[1764849119366,0.05869,92938.0,92937.0,0.13341797]
[1764849119870,0.05869,92938.0,92937.0,0.07539522]
[1764849121265,0.001,92938.0,92937.0,0.07539522]
[1764849121471,0.0107589,92939.0,92938.0,0.0656989]
[1764849121776,0.0684486,92944.0,92943.0,0.0107579]
[1764849121969,0.0684486,92944.0,92943.0,0.0656979]
[1764849123381,0.0694486,92944.0,92943.0,0.0676979]
[1764849123872,0.0694486,92944.0,92943.0,0.02951]
[1764849124072,0.0694486,92944.0,92943.0,0.05878]
[1764849126484,0.0694486,92944.0,92943.0,0.0695384]
[1764849127176,0.05869,92944.0,92943.0,0.0695384]
[1764849134592,0.001,92944.0,92943.0,0.0695384]
[1764849135490,0.02877,92944.0,92943.0,0.0695384]
[1764849135887,0.05781,92944.0,92943.0,0.05878]
[1764849136086,0.05781,92944.0,92943.0,0.0695384]
[1764849138293,0.05781,92944.0,92943.0,0.1276024]
[1764849139988,0.05781,92944.0,92943.0,0.0695384]
[1764849141387,0.05781,92944.0,92943.0,0.002]
[1764849143390,0.01656,92940.0,92939.0,0.03872014]
[1764849143592,0.0841287,92940.0,92939.0,0.03872014]
[1764849143783,0.05681,92939.0,92938.0,0.03872014]
[1764849145292,0.05781,92939.0,92938.0,0.003]
[1764849145992,0.0675689,92938.0,92937.0,0.05027536]
[1764849147601,0.0685689,92938.0,92937.0,0.05127536]
[1764849148495,0.0685689,92938.0,92937.0,0.07867536]
[1764849148993,0.0685689,92938.0,92937.0,0.03995522]
[1764849149394,0.0685689,92938.0,92937.0,0.01255522]
[1764849149605,0.0685689,92938.0,92937.0,0.03995522]
[1764849150790,0.0685689,92938.0,92937.0,0.06922522]
[1764849163598,0.0117589,92938.0,92937.0,0.06922522]
[1764849164004,0.0411789,92938.0,92937.0,0.06922522]
[1764849166706,0.0711189,92938.0,92937.0,0.06922522]
[1764849170303,0.0711189,92938.0,92937.0,0.12730428]
[1764849171506,0.0711189,92938.0,92937.0,0.06922522]
[1764849172202,0.0711189,92938.0,92937.0,0.06894522]
[1764849173204,0.0411789,92938.0,92937.0,0.06894522]
[1764849173508,0.0711189,92938.0,92937.0,0.06894522]
[1764849174805,0.001,92938.0,92937.0,0.06894522]
[1764849177002,0.0107581,92945.0,92944.0,0.07401]
[1764849177202,0.0107579,92948.0,92947.0,0.0107573]
[1764849177402,0.0107575,92954.0,92947.0,0.05743]
[1764849177602,0.0701175,92954.0,92953.0,0.10689637]
[1764849177802,0.0401775,92954.0,92953.0,0.10689637]
[1764849178003,0.0701175,92954.0,92953.0,0.068187]
[1764849179013,0.0711175,92954.0,92953.0,0.068187]
[1764849179405,0.0711175,92954.0,92953.0,0.10687204]
[1764849179601,0.0117575,92954.0,92953.0,0.10687204]
[1764849179915,0.0167575,92954.0,92953.0,0.069187]
[1764849180314,0.49948,92970.0,92953.0,0.069187]
[1764849180315,0.01102472,92966.0,92965.0,0.0847658]
[1764849180611,0.05962892,92966.0,92965.0,0.41823]
[1764849182518,0.06162892,92966.0,92965.0,0.41923]
[1764849183017,0.06062892,92966.0,92965.0,0.41923]
[1764849183411,0.00126892,92966.0,92965.0,0.43447]
[1764849185209,0.00126892,92966.0,92965.0,0.47306417]
[1764849186309,0.00126892,92966.0,92965.0,0.43447]
[1764849187613,0.00126892,92966.0,92965.0,0.47306417]
[1764849188218,0.00126892,92966.0,92965.0,0.43447]
[1764849190118,0.02998892,92966.0,92965.0,0.43447]
[1764849190510,0.05804892,92966.0,92965.0,0.43447]
[1764849191606,0.02998892,92966.0,92965.0,0.43447]
[1764849191814,0.00126892,92966.0,92965.0,0.43447]
[1764849193010,0.05804892,92966.0,92965.0,0.43447]
[1764849194728,0.05804892,92966.0,92965.0,0.41923]
[1764849195722,0.06880462,92966.0,92965.0,0.3618]
[1764849196022,0.06880462,92966.0,92965.0,0.001]
[1764849200716,0.06880462,92966.0,92965.0,0.05884]
[1764849202935,0.06880462,92966.0,92965.0,0.03072]
[1764849203227,0.06880462,92966.0,92965.0,0.05884]
[1764849205624,0.05804892,92966.0,92965.0,0.05884]
[1764849206020,0.00126892,92966.0,92965.0,0.05884]
[1764849206217,0.05804892,92966.0,92965.0,0.05884]
[1764849206719,0.05804892,92966.0,92965.0,0.001]
[1764849209029,0.05804892,92966.0,92965.0,0.03072]
[1764849209629,0.06880462,92966.0,92965.0,0.03072]
[1764849209928,0.06880462,92966.0,92965.0,0.05884]
[1764849211427,0.00126892,92966.0,92965.0,0.05884]
[1764849214828,0.01202462,92966.0,92965.0,0.05884]
[1764849215133,0.04101462,92966.0,92965.0,0.05884]
[1764849215330,0.03025892,92966.0,92965.0,0.05884]
[1764849215535,0.05867892,92966.0,92965.0,0.05884]
[1764849217935,0.03025892,92966.0,92965.0,0.05884]
[1764849218240,0.00126892,92966.0,92965.0,0.05884]
[1764849219824,0.0107546,92976.0,92975.0,0.0685247]
[1764849220030,0.0107546,92976.0,92975.0,0.4293247]
[1764849220323,0.0681637,92984.0,92983.0,0.0685237]
[1764849220832,0.0681637,92984.0,92983.0,0.05777]
[1764849221223,0.0690044,92977.0,92976.0,0.10651016]
[1764849221424,0.0690044,92977.0,92976.0,0.09575566]
[1764849221747,0.0690047,92975.0,92974.0,0.06708566]
[1764849221922,0.0690047,92975.0,92974.0,0.09575566]
[1764849222127,0.0690047,92975.0,92974.0,0.0571]
[1764849224429,0.0690047,92975.0,92974.0,0.0581]
[1764849224633,0.0690047,92975.0,92972.0,0.0107549]
[1764849224634,0.0690056,92967.0,92966.0,0.03808828]
[1764849224837,0.0690067,92957.0,92956.0,0.05726142]
[1764849226435,0.0700067,92957.0,92956.0,0.06126142]
[1764849232246,0.05925,92957.0,92956.0,0.42206142]
[1764849232643,0.001,92957.0,92956.0,0.42206142]
[1764849234939,0.001,92957.0,92956.0,0.48004948]
[1764849235144,0.38959,92967.0,92966.0,0.0571]
[1764849235343,0.0107556,92969.0,92967.0,0.0107555]
[1764849235553,0.0395456,92969.0,92968.0,0.0571]
[1764849235741,0.0690056,92969.0,92968.0,0.0571]
[1764849236738,0.0690056,92969.0,92968.0,0.0581]
[1764849237440,0.0700056,92969.0,92968.0,0.0581]
[1764849239835,0.0117556,92969.0,92968.0,0.0581]
[1764849240039,0.001,92969.0,92968.0,0.0581]
[1764849240447,0.3608,92975.0,92974.0,0.0678548]
[1764849240647,0.41905,92975.0,92974.0,0.0571]
[1764849241250,0.05825,92975.0,92974.0,0.0571]
[1764849241445,0.0107543,92979.0,92978.0,0.0107541]
[1764849241742,0.0107543,92979.0,92978.0,0.0678541]
[1764849241948,0.0690043,92979.0,92978.0,0.0678541]
[1764849242853,0.06125,92979.0,92978.0,0.0678541]
[1764849243244,0.06125,92979.0,92978.0,0.0571]
[1764849250850,0.0689643,92978.0,92977.0,0.3608]
[1764849251155,0.05821,92971.0,92970.0,0.0659452]
[1764849251353,0.0689655,92971.0,92970.0,0.0659452]
[1764849252760,0.0699655,92971.0,92970.0,0.0659452]
[1764849253258,0.001,92971.0,92970.0,0.0834652]
[1764849254458,0.0107528,92991.0,92970.0,0.0834652]
[1764849254459,0.068964,92984.0,92983.0,0.05519]
[1764849254756,0.0689642,92979.0,92978.0,0.02749]
[1764849255262,0.0689642,92979.0,92978.0,0.0659443]
[1764849255958,0.0709642,92979.0,92978.0,0.0659443]
[1764849256257,0.0709642,92979.0,92978.0,0.05519]
[1764849257159,0.0719642,92979.0,92978.0,0.0659443]
[1764849259059,0.0719642,92979.0,92978.0,0.05519]
[1764849259363,0.0719642,92979.0,92975.0,0.3608]
[1764849259364,0.0859145,92976.0,92975.0,0.41599]
[1764849260256,0.0689645,92976.0,92975.0,0.45460003]
[1764849260563,0.0719645,92976.0,92975.0,0.45460003]
[1764849260858,0.0889145,92976.0,92975.0,0.45460003]
[1764849262262,0.0889145,92976.0,92975.0,0.41599]
[1764849262650,0.0889145,92976.0,92975.0,0.3608]
[1764849262964,0.05821,92975.0,92974.0,0.00016133]
[1764849263556,0.05821,92975.0,92974.0,0.02765133]
[1764849264063,0.05921,92975.0,92974.0,0.02765133]
[1764849264267,0.06021,92975.0,92974.0,0.05535133]
[1764849265468,0.06021,92975.0,92974.0,0.09401103]
[1764849266060,0.06021,92975.0,92974.0,0.03882103]
[1764849267067,0.06021,92975.0,92974.0,0.06631103]
[1764849267265,0.06021,92975.0,92974.0,0.02765133]
[1764849269968,0.06021,92975.0,92974.0,0.05535133]
[1764849272770,0.07716,92975.0,92974.0,0.05535133]
[1764849273571,0.06021,92975.0,92974.0,0.06610613]
[1764849274364,0.06021,92975.0,92974.0,0.05535133]
[1764849282178,0.06021,92975.0,92974.0,0.11333939]
[1764849282179,0.0709647,92975.0,92974.0,0.11333939]
[1764849282573,0.06021,92975.0,92974.0,0.05535133]
[1764849282984,0.002,92975.0,92974.0,0.05535133]
[1764849283282,0.03161,92975.0,92974.0,0.05535133]
[1764849283473,0.0719147,92975.0,92974.0,0.11341555]
[1764849285180,0.0423647,92975.0,92974.0,0.11341555]
[1764849285677,0.0719147,92975.0,92974.0,0.11341555]
[1764849286080,0.0127547,92975.0,92974.0,0.11341555]
[1764849286478,0.0423647,92975.0,92974.0,0.11341555]
[1764849287184,0.0719147,92975.0,92974.0,0.11341555]
[1764849287385,0.0888647,92975.0,92974.0,0.11341555]
[1764849289487,0.0719147,92975.0,92974.0,0.12417035]
[1764849289978,0.0719147,92975.0,92974.0,0.06610613]
[1764849291189,0.05,93000.0,92999.0,0.05722]
[1764849291384,0.07961,93000.0,92999.0,0.45670736]
[1764849291572,0.10916,93000.0,92999.0,0.45670736]
[1764849292080,0.10916,93000.0,92999.0,0.42917685]
[1764849292274,0.11016,93000.0,92999.0,0.43317685]
[1764849295275,1e-07,93006.0,93005.0,0.0679712]
[1764849295486,1e-07,93006.0,93005.0,0.5672112]
[1764849295888,1e-07,93006.0,93005.0,2.0672112]
[1764849296379,0.0010001,93006.0,93005.0,2.0782112]
[1764849298784,0.3608,93042.0,93031.0,0.05722]
[1764849298984,0.01768,93054.0,93045.0,0.05722]
[1764849299186,0.05942869,93046.0,93045.0,0.05722]
[1764849300878,0.05942869,93046.0,93045.0,0.02765]
[1764849301090,0.06042869,93046.0,93045.0,0.05722]
[1764849304385,0.05986,93042.0,93041.0,0.3608]
[1764849304688,0.05986,93032.0,93022.0,0.00016124]
[1764849305092,0.05986,93032.0,93030.0,0.0107482]
[1764849305294,0.07764,93032.0,93031.0,0.38979]
[1764849305686,0.07764,93032.0,93031.0,0.39079]
[1764849306087,0.07764,93032.0,93031.0,0.42047]
[1764849306395,0.07764,93032.0,93031.0,0.42147]
[1764849306689,0.05986,93032.0,93031.0,0.42147]
[1764849307086,0.02991,93037.0,93036.0,0.0694176]
[1764849307593,0.07764,93044.0,93043.0,0.0694168]
[1764849307790,0.05986,93044.0,93043.0,0.0694168]
[1764849307981,0.00026869,93046.0,93045.0,0.05867]
[1764849308187,0.03017869,93046.0,93045.0,0.05867]
[1764849308791,0.06012869,93046.0,93045.0,0.05867]
[1764849309692,0.03017869,93046.0,93045.0,0.05867]
[1764849310096,0.05986,93044.0,93043.0,0.0107468]
[1764849310486,0.07764,93032.0,93022.0,0.00016124]
[1764849310689,0.05986,93023.0,93022.0,0.00016124]
[1764849312101,0.05986,93023.0,93022.0,0.00116124]
[1764849312294,0.06286,93023.0,93022.0,0.00116124]
[1764849313798,0.05986,93023.0,93022.0,0.00116124]
[1764849313999,0.06186,93023.0,93022.0,0.00116124]
[1764849314901,0.06286,93023.0,93022.0,0.00116124]
[1764849317592,0.06286,93023.0,93022.0,0.03015124]
[1764849317792,0.06286,93023.0,93022.0,0.05983124]
[1764849323698,0.06286,93023.0,93022.0,0.00116124]
[1764849324106,0.06286,93023.0,93022.0,0.03015124]
[1764849324802,0.06286,93023.0,93022.0,0.05983124]
[1764849325303,0.06286,93023.0,93022.0,0.07058044]
[1764849336416,0.06286,93023.0,93022.0,0.00116124]
[1764849336613,0.42366,93023.0,93022.0,0.00116124]
[1764849342736,0.06286,93023.0,93022.0,0.03070124]
[1764849343930,0.06286,93023.0,93022.0,0.05872124]
[1764849344939,0.06286,93023.0,93022.0,0.03070124]
[1764849345438,0.06286,93023.0,93022.0,0.05872124]
[1764849347742,0.06286,93023.0,93022.0,0.00116124]
[1764849353543,0.06286,93023.0,93022.0,0.03967431]
[1764849354849,0.06286,93023.0,93022.0,0.06921431]
[1764849356742,0.06286,93023.0,93022.0,0.03070124]
[1764849357541,0.06286,93023.0,93022.0,0.00116124]
[1764849361348,0.06286,93023.0,93022.0,0.03967431]
[1764849365358,0.06286,93023.0,93022.0,0.00116124]
[1764849365751,0.06286,93023.0,93022.0,0.03096124]
[1764849367659,0.06286,93023.0,93022.0,0.05798124]
[1764849370661,0.06286,93023.0,93022.0,0.03096124]
[1764849371753,0.06286,93023.0,93022.0,0.05798124]
[1764849372459,0.06286,93023.0,93022.0,0.11581811]
[1764849374466,0.003,93023.0,93022.0,0.05798124]
[1764849378964,0.01656,93040.0,93023.0,0.0107491]
[1764849379170,0.07278,93036.0,93035.0,0.41762]
[1764849379870,0.07278,93036.0,93035.0,0.4283677]
[1764849380074,0.07878,93036.0,93035.0,0.4283677]
[1764849380261,0.0179395,93036.0,93035.0,0.4436277]
[1764849380566,0.006,93036.0,93035.0,0.4436277]
[1764849381472,0.05526869,93046.0,93045.0,0.0675666]
[1764849382867,0.05626869,93046.0,93045.0,0.0675666]
[1764849383371,0.06226869,93046.0,93045.0,0.0675666]
[1764849385967,0.055,93036.0,93035.0,0.4013477]
[1764849386269,0.055,93036.0,93035.0,0.4283677]
[1764849386468,0.055,93036.0,93035.0,0.3715477]
[1764849386670,0.055,93036.0,93035.0,0.3608]
[1764849387364,0.07156,93036.0,93035.0,0.3608]
[1764849388262,0.055,93032.0,93031.0,0.0405481]
[1764849388573,0.055,93032.0,93031.0,0.0675681]
[1764849390064,0.057,93032.0,93031.0,0.0675681]
[1764849398278,0.057,93032.0,93031.0,0.1061931]
[1764849399780,0.057,93032.0,93031.0,0.095445]
[1764849399975,0.057,93032.0,93031.0,0.05682]
[1764849400370,0.07374,93032.0,93031.0,0.0298]
[1764849400565,0.07374,93032.0,93031.0,0.05957]
[1764849408583,0.07374,93032.0,93028.0,0.0107485]
[1764849408584,0.05539,93029.0,93028.0,0.05798325]
[1764849408887,0.05539,93025.0,93024.0,0.03866638]
[1764849409082,0.05539,93025.0,93023.0,0.03866638]
[1764849409275,0.07187,93024.0,93023.0,0.03866638]
[1764849410180,0.05539,93023.0,93022.0,0.03882762]
[1764849411482,0.05739,93023.0,93022.0,0.03882762]
[1764849411784,0.05739,93023.0,93022.0,0.00016124]
[1764849416977,0.05539,93005.0,93001.0,0.05798325]
[1764849417183,0.55451,93005.0,92998.0,0.05798325]
[1764849417391,0.55451,93005.0,93004.0,0.41574]
[1764849419190,0.5652612,93005.0,93004.0,0.05694]